fUSD/lending_fUSD_20241019
["ID","MTS","AMOUNT","RATE_DAILY","PERIOD"]
[340498733,1729354238302,-150.0,0.0002337,2]
[340498734,1729354238312,-150.0,0.0002337,2]
[340498735,1729354238321,-535.49,0.000234,2]
[340498736,1729354238331,-150.0,0.00023692,2]
[340498737,1729354238341,-150.99,0.00023692,2]
[340498738,1729354238350,-150.0,0.00023694,2]
[340498739,1729354238360,-150.0,0.00023696,2]
[340498740,1729354238370,-429.85,0.000237,2]
[340498741,1729354238380,-535.49,0.000237,2]
[340498742,1729354238389,-150.0,0.000237,2]
[340498743,1729354238399,-150.0,0.000237,2]
[340498744,1729354238408,-359.42,0.000237,2]
[340498745,1729354238417,-535.49,0.000237,2]
[340498746,1729354238427,-150.0,0.000237,2]
[340498747,1729354238436,-876.7,0.000237,2]
[340498748,1729354238445,-269.84,0.000237,2]
[340498749,1729354238455,-2500.0,0.00023715,2]
[340498750,1729354238464,-150.0,0.00023716,2]
[340498751,1729354238474,-150.0,0.00023718,2]
[340498752,1729354238483,-150.0,0.00023725,2]
[340498753,1729354238492,-150.0,0.00023729,2]
[340498754,1729354238501,-1500.0,0.00023729,2]
[340498755,1729354238511,-150.0,0.0002373,2]
[340498756,1729354238521,-150.0,0.0002373,2]
[340498757,1729354238530,-150.0,0.00023731,2]
[340498758,1729354238539,-150.0,0.00023734,2]
[340498759,1729354238548,-150.0,0.00023735,2]
[340498760,1729354238558,-150.0,0.00023741,2]
[340498761,1729354238567,-150.0,0.00023742,2]
[340498762,1729354238576,-150.0,0.00023743,2]
[340498763,1729354238586,-150.0,0.00023744,2]
[340498764,1729354238595,-150.0,0.00023745,2]
[340498765,1729354238604,-150.0,0.00023746,2]
[340498766,1729354238614,-25740.562,0.00023748,4]
[340498767,1729354238623,-176.31,0.00023748,4]
[340498768,1729354238632,-150.0,0.00023749,2]
[340498769,1729354238641,-150.0,0.00023754,2]
[340498770,1729354238650,-150.0,0.00023755,2]
[340498771,1729354238659,-150.0,0.00023758,2]
[340498772,1729354238668,-150.0,0.00023759,2]
[340498773,1729354238677,-150.0,0.00023761,2]
[340498774,1729354238686,-150.0,0.00023763,2]
[340498775,1729354238695,-150.0,0.00023765,2]
[340498776,1729354238705,-150.0,0.00023766,2]
[340498777,1729354238714,-150.0,0.00023766,2]
[340498778,1729354238723,-150.0,0.00023767,2]
[340498779,1729354238732,-150.0,0.00023771,2]
[340498780,1729354238740,-500.0,0.00023773,2]
[340498781,1729354238750,-500.0,0.00023773,2]
[340498782,1729354238758,-150.0,0.00023779,2]
[340498783,1729354238768,-150.0,0.00023779,2]
[340498784,1729354238777,-150.0,0.00023784,2]
[340498785,1729354238786,-150.0,0.00023788,2]
[340498786,1729354238796,-7500.0,0.00023788,2]
[340498787,1729354238804,-1500.0,0.00023792,2]
[340498788,1729354238815,-150.0,0.00023792,2]
[340498789,1729354238825,-150.0,0.00023796,2]
[340498790,1729354238834,-361.7502,0.00023798,2]
[340498791,1729354238843,-2737.0105,0.00023798,2]
[340498792,1729354238853,-11218.6836,0.00023798,2]
[340498793,1729354238862,-1429.9447,0.00023798,2]
[340498794,1729354238871,-7572.96138274,0.00023798,2]
[340498795,1729354239659,-3692.56291726,0.00023798,2]
[340498796,1729354239669,-952.0333,0.00023798,2]
[340498797,1729354239680,-4336.8361,0.00023798,2]
[340498798,1729354239689,-190.89162778,0.000238,2]
[340498799,1729354239698,-175.05,0.000238,2]
[340498800,1729354239707,-8100.0,0.000238,8]
[340498801,1729354239717,-150.0,0.00023802,2]
[340498802,1729354239726,-150.0,0.00023808,2]
[340498803,1729354239735,-150.0,0.00023809,2]
[340498804,1729354239744,-150.0,0.00023809,2]
[340498805,1729354239753,-150.0,0.00023811,2]
[340498806,1729354239763,-150.0,0.00023812,2]
[340498807,1729354239772,-1500.0,0.00023815,2]
[340498808,1729354239782,-151.33255264,0.00023816,2]
[340498809,1729354239791,-150.0,0.00023817,2]
[340498810,1729354239800,-150.0,0.00023819,2]
[340498811,1729354239809,-150.0,0.00023819,2]
[340498812,1729354239818,-150.0,0.0002382,2]
[340498813,1729354239827,-150.0,0.0002382,2]
[340498814,1729354239836,-150.0,0.0002382,2]
[340498815,1729354239845,-150.0,0.0002382,2]
[340498816,1729354239855,-150.0,0.00023821,2]
[340498817,1729354239864,-150.0,0.00023821,2]
[340498818,1729354239874,-150.0,0.00023823,2]
[340498819,1729354239883,-150.0,0.00023828,2]
[340498820,1729354239893,-1500.0,0.00023829,2]
[340498821,1729354239902,-150.0,0.00023831,2]
[340498822,1729354239911,-150.0,0.00023831,2]
[340498823,1729354239920,-150.0,0.00023834,2]
[340498824,1729354239929,-150.0,0.00023836,2]
[340498826,1729354239939,-150.0,0.00023843,2]
[340498828,1729354239948,-150.0,0.00023845,2]
[340498829,1729354239957,-1500.0,0.00023852,2]
[340498830,1729354239966,-150.0,0.00023854,2]
[340498831,1729354239975,-150.0,0.00023855,2]
[340498832,1729354239984,-150.0,0.00023856,2]
[340498833,1729354239993,-150.0,0.00023859,2]
[340498834,1729354240003,-150.0,0.0002386,2]
[340498835,1729354240011,-150.0,0.00023861,2]
[340498836,1729354240021,-1500.0,0.00023861,2]
[340498837,1729354240031,-152.85,0.00023867,3]
[340498838,1729354240040,-458.57,0.00023867,3]
[340498839,1729354240049,-150.0,0.00023867,2]
[340498840,1729354240058,-150.0,0.00023869,2]
[340498841,1729354240067,-150.0,0.00023869,2]
[340498842,1729354240076,-500.0,0.00023873,2]
[340498843,1729354240086,-503.75624971,0.00023873,2]
[340498844,1729354240095,-150.0,0.00023873,2]
[340498845,1729354240104,-500.0,0.00023877,2]
[340498846,1729354240113,-500.0,0.00023877,2]
[340498847,1729354240123,-500.0,0.00023877,2]
[340498848,1729354240132,-500.0,0.00023877,2]
[340498849,1729354240141,-500.0,0.00023877,2]
[340498850,1729354240151,-500.0,0.00023877,2]
[340498851,1729354240160,-500.0,0.00023877,2]
[340498852,1729354240169,-199.34195405,0.00023877,2]
[340498853,1729354240178,-2500.0,0.00023878,2]
[340498854,1729354240187,-9969.50295763,0.00023878,5]
[340498855,1729354240199,-16153.68747997,0.00023878,5]
[340498856,1729354240211,-2546.6,0.00023878,5]
[340498857,1729354240222,-16932.32639603,0.00023878,5]
[340498858,1729354240233,-8480.49772017,0.00023878,5]
[340498859,1729354240242,-1830.8005991,0.00023878,5]
[340498860,1729354240252,-150.0,0.0002388,2]
[340498861,1729354240261,-150.0,0.00023882,2]
[340498862,1729354240270,-413.84325672,0.00023883,5]
[340498863,1729354240293,-683.19908056,0.00023883,5]
[340498864,1729354240319,-733.75826182,0.00023883,5]
[340498865,1729354240328,-150.0,0.00023884,2]
[340498866,1729354240339,-2500.0,0.00023887,2]
[340498867,1729354240348,-49431.6161757,0.00023888,5]
[340498868,1729354240359,-173.64348996,0.00023888,2]
[340498869,1729354240369,-151.48,0.00023888,2]
[340498870,1729354240379,-151.48,0.00023888,2]
[340498871,1729354240388,-151.48,0.00023888,2]
[340498872,1729354240398,-1830.8005991,0.0002389,5]
[340498873,1729354240407,-150.0,0.00023893,2]
[340498874,1729354240416,-150.0,0.00023896,2]
[340498875,1729354240426,-150.0,0.00023896,2]
[340498876,1729354240436,-150.0,0.00023897,2]
[340498877,1729354240446,-2454.76572944,0.00023897,2]
[340498878,1729354240457,-416.45103108,0.00023897,2]
[340498879,1729354240467,-840.0,0.00023898,2]
[340498880,1729354240477,-150.0,0.00023898,2]
[340498881,1729354240486,-26135.6358,0.00023898,2]
[340498882,1729354240496,-271919.8141,0.00023898,2]
[340498883,1729354240506,-245000.0,0.00023898,2]
[340498884,1729354240517,-1000.0,0.00023898,2]
[340498885,1729354240526,-4333.3279,0.00023898,2]
[340498886,1729354240537,-150.0,0.00023899,2]
[340498887,1729354240546,-375.0,0.00023899,2]
[340498888,1729354240556,-7584.07965254,0.000239,2]
[340498889,1729354240567,-163.12,0.000239,2]
[340498890,1729354240576,-1000.0,0.000239,2]
[340498891,1729354240588,-16300.0,0.000239,8]
[340498892,1729354240597,-161.0407329,0.00023902,2]
[340498893,1729354240606,-150.0,0.00023903,2]
[340498894,1729354240616,-150.0,0.00023906,2]
[340498895,1729354240625,-150.0,0.00023907,2]
[340498896,1729354240634,-150.0,0.00023911,2]
[340498897,1729354240643,-1830.8005991,0.00023911,5]
[340498898,1729354240652,-150.0,0.00023912,2]
[340498899,1729354240661,-150.0,0.00023915,2]
[340498900,1729354240670,-150.0,0.00023918,2]
[340498901,1729354240679,-150.0,0.00023918,2]
[340498902,1729354240688,-150.0,0.00023918,2]
[340498903,1729354240697,-150.0,0.00023918,2]
[340498904,1729354240706,-150.0,0.00023918,2]
[340498905,1729354240717,-159.89061163,0.00023919,2]
[340498906,1729354240727,-150.0,0.00023921,2]
[340498907,1729354240737,-298.37,0.00023924,2]
[340498908,1729354240747,-150.081,0.00023924,2]
[340498909,1729354240758,-150.0,0.00023924,2]
[340498910,1729354240768,-150.0,0.00023927,2]
[340498911,1729354240777,-300.0,0.00023934,2]
[340498912,1729354240786,-996.77205123,0.00023935,2]
[340498913,1729354240794,-150.0,0.00023938,2]
[340498914,1729354240805,-150.0,0.00023941,2]
[340498915,1729354240814,-150.0,0.00023942,2]
[340498916,1729354240823,-150.0,0.00023944,2]
[340498917,1729354240833,-150.0,0.00023961,2]
[340498918,1729354240843,-150.0,0.00023966,2]
[340498919,1729354240852,-151.48,0.00023967,2]
[340498920,1729354240862,-150.0,0.00023968,2]
[340498921,1729354240871,-150.0,0.00023969,2]
[340498922,1729354240881,-150.0,0.00023969,2]
[340498923,1729354240890,-152.80288962,0.0002397,2]
[340498924,1729354240900,-150.0,0.0002397,2]
[340498925,1729354240910,-150.0,0.00023971,2]
[340498926,1729354240919,-500.0,0.00023973,2]
[340498927,1729354240929,-13537.0,0.00023977,2]
[340498928,1729354240939,-1151.0,0.00023977,2]
[340498929,1729354240948,-150.0,0.00023977,2]
[340498930,1729354240958,-5887.0,0.00023977,2]
[340498931,1729354240967,-150.0,0.00023988,2]
[340498932,1729354240975,-204.0,0.0002399,7]
[340498933,1729354240984,-151.48,0.0002399,2]
[340498934,1729354240993,-151.48,0.00023992,2]
[340498935,1729354241002,-151.48,0.00023992,2]
[340498936,1729354241011,-1500.0,0.00023993,2]
[340498937,1729354241020,-424.17392624,0.00023999,2]
[340498938,1729354241029,-416.0,0.00024,7]
[340498939,1729354241038,-263.08,0.00024,3]
[340498940,1729354241048,-100000.0,0.00024,2]
[340498941,1729354241058,-37649.8576,0.00024,2]
[340498942,1729354241067,-10000.0,0.00024,2]
[340498943,1729354241076,-116353.2424322,0.00024002,2]
[340498944,1729354241086,-1585.3708919,0.00024002,2]
[340498945,1729354241095,-17271.385463,0.00024002,2]
[340498946,1729354241104,-218.28,0.00024036,2]
[340498947,1729354241113,-560.0,0.00024039,2]
[340498948,1729354241122,-448.054,0.00024039,2]
[340498949,1729354241131,-1245.0,0.00024039,2]
[340498950,1729354241141,-454.792,0.00024039,2]
[340498951,1729354241150,-936.0,0.00024039,2]
[340498952,1729354241159,-555.0,0.00024039,2]
[340498953,1729354241168,-150.0,0.00024039,2]
[340498954,1729354241177,-3358.0,0.00024039,2]
[340498955,1729354241186,-1909.0,0.00024039,2]
[340498956,1729354241195,-809.0,0.00024039,2]
[340498957,1729354241206,-500.0,0.00024073,2]
[340498958,1729354241216,-24500.0,0.000241,8]
[340498959,1729354241225,-151.48,0.0002419,2]
[340498960,1729354241234,-14947.28619436,0.000242,8]
[340498961,1729354241382,-3310.77682989,0.000242,8]
[340498962,1729354241398,-2864.37466434,0.000242,8]
[340498963,1729354241410,-440.75109386,0.000242,8]
[340498964,1729354241433,-11036.81121755,0.000242,8]
[340498965,1729354241443,-488.44,0.00024211,2]
[340498966,1729354241451,-3077.68502252,0.00024232,2]
[340498967,1729354241461,-161.0407329,0.00024235,2]
[340498968,1729354241470,-37399.40613308,0.000243,8]
[340498969,1729354241486,-3400.59386692,0.000243,8]
[340498970,1729354241497,-167.0,0.00024325,2]
[340498971,1729354241508,-3077.68502252,0.00024365,2]
[340498972,1729354241519,-204.0,0.0002439,2]
[340498973,1729354241529,-8100.0,0.000244,8]
[340498974,1729354241538,-3077.68502252,0.00024499,2]
[340498975,1729354241547,-2284.99,0.000245,2]
[340498976,1729354241556,-8100.0,0.000245,8]
[340498977,1729354241565,-151.48,0.0002454,2]
[340498978,1729354241575,-151.48,0.0002454,2]
[340498979,1729354241586,-58698.88402302,0.0002455,2]
[340498987,1729354242978,-4608.06807084,0.0002455,2]
[340498988,1729354243136,-1524.3669492,0.0002455,2]
[340498989,1729354243191,-1007.88253625,0.0002455,2]
[340498990,1729354243248,-689.2999998,0.0002455,2]
[340498991,1729354243260,-3410.15,0.0002455,2]
[340498992,1729354243300,-36108.49321382,0.0002455,2]
[340498993,1729354243309,-151.0,0.0002455,7]
[340498994,1729354243318,-161.0407329,0.00024567,2]
[340498995,1729354243327,-151.0,0.000246,7]
[340498996,1729354243337,-151.0,0.000246,7]
[340498997,1729354243346,-5472.62762028,0.000246,8]
[340498998,1729354243358,-2627.37237972,0.000246,8]
[340498999,1729354243368,-3077.68502252,0.00024633,2]
[340499000,1729354243496,-500.0,0.00024658,7]
[340499001,1729354243507,-1000.0,0.00024658,2]
[340499002,1729354243517,-5060.10491021,0.000247,9]
[340499003,1729354243618,163.36,0.00010959,2]
[340499006,1729354245975,-1242.40000003,0.000247,9]
[340499007,1729354245987,-1797.49508976,0.000247,9]
[340499008,1729354245997,-500.0,0.00024724,2]
[340499009,1729354246006,-200.84830327,0.0002473,2]
[340499010,1729354246015,-500.0,0.0002473,2]
[340499011,1729354246025,-500.0,0.0002473,2]
[340499012,1729354246035,-500.0,0.0002473,2]
[340499013,1729354246044,-500.0,0.00024733,2]
[340499014,1729354246054,-500.0,0.00024742,2]
[340499015,1729354246063,-1825.21108697,0.0002475,2]
[340499016,1729354246079,-1083.33327018,0.0002475,2]
[340499017,1729354246090,-6208.34880148,0.0002475,2]
[340499018,1729354246101,-2820.23802326,0.0002475,2]
[340499019,1729354246110,-500.0,0.0002475,2]
[340499020,1729354246120,-19.77307714,0.00024759,2]
[340499021,1729354246131,-290.38875,0.00024759,2]
[340499022,1729354246143,-189.83817286,0.00024759,2]
[340499023,1729354246152,-3077.68502252,0.00024766,2]
[340499024,1729354246162,-500.0,0.00024768,2]
[340499025,1729354246173,-2729.6541,0.00024776,2]
[340499026,1729354246182,-500.0,0.00024777,2]
[340499027,1729354246192,-500.0,0.00024786,2]
[340499028,1729354246201,-300.0,0.0002479,2]
[340499029,1729354246211,-500.0,0.00024794,2]
[340499030,1729354246221,-3000.0,0.000248,2]
[340499031,1729354246231,-8700.0,0.000248,9]
[340499032,1729354246242,-500.0,0.00024803,2]
[340499033,1729354246252,-500.0,0.00024812,2]
[340499034,1729354246261,-500.0,0.00024821,2]
[340499035,1729354246271,-500.0,0.0002483,2]
[340499036,1729354246280,-500.0,0.00024838,2]
[340499037,1729354246290,-500.0,0.00024847,2]
[340499038,1729354246300,-500.0,0.00024856,2]
[340499039,1729354246309,-500.0,0.00024865,2]
[340499040,1729354246319,-500.0,0.00024874,2]
[340499041,1729354246328,-160.21210206,0.00024876,2]
[340499042,1729354246337,-156.99,0.00024877,30]
[340499043,1729354246348,-171.00963363,0.00024877,2]
[340499044,1729354246357,-1561.48854819,0.00024877,2]
[340499045,1729354246368,-271.84964832,0.00024877,2]
[340499046,1729354246378,-5050.0,0.0002488,6]
[340499048,1729354246388,-500.0,0.00024882,2]
[340499050,1729354246398,-1561.48854819,0.00024889,2]
[340499052,1729354246408,-271.84964832,0.00024889,2]
[340499054,1729354246417,-500.0,0.00024891,2]
[340499056,1729354246427,-500.0,0.000249,2]
[340499058,1729354246437,-300.0,0.000249,2]
[340499060,1729354246447,-833.0,0.000249,8]
[340499062,1729354246457,-764.0,0.000249,8]
[340499064,1729354246466,-1500.0,0.000249,2]
[340499066,1729354246475,-1500.0,0.000249,2]
[340499068,1729354246485,-1500.0,0.000249,2]
[340499070,1729354246494,-1861.36,0.000249,2]
[340499071,1729354246503,-161.0407329,0.000249,2]
[340499073,1729354246513,-416.0,0.000249,8]
[340499075,1729354246522,-3077.68502252,0.000249,2]
[340499077,1729354246531,-1561.48854819,0.000249,2]
[340499079,1729354246540,-151.48,0.00024921,2]
[340499081,1729354246550,-151.48,0.00024921,2]
[340499083,1729354246559,-241.949572,0.00024931,2]
[340499085,1729354246568,-241.949572,0.00024931,2]
[340499087,1729354246577,-241.949572,0.00024931,2]
[340499089,1729354246586,-241.949572,0.00024931,2]
[340499091,1729354246596,-241.949572,0.00024931,2]
[340499093,1729354246605,-241.949572,0.00024931,2]
[340499095,1729354246614,-241.949572,0.00024931,2]
[340499097,1729354246623,-241.949572,0.00024931,2]
[340499099,1729354246633,-500.0,0.00024931,2]
[340499101,1729354246643,-500.0,0.00024931,2]
[340499103,1729354246652,-500.0,0.00024931,2]
[340499105,1729354246661,-500.0,0.00024931,2]
[340499107,1729354246670,-500.0,0.00024931,2]
[340499108,1729354246679,-500.0,0.00024931,2]
[340499110,1729354246689,-500.0,0.00024931,2]
[340499112,1729354246698,-500.0,0.00024931,2]
[340499114,1729354246707,-500.83649803,0.00024931,2]
[340499116,1729354246716,-500.0,0.00024931,2]
[340499118,1729354246725,-500.0,0.00024931,2]
[340499120,1729354246734,-584.35976966,0.00024931,2]
[340499122,1729354246744,-500.0,0.00024931,7]
[340499124,1729354246753,-500.0,0.00024931,7]
[340499126,1729354246762,-500.0,0.00024931,7]
[340499128,1729354246771,-500.0,0.00024931,7]
[340499130,1729354246780,-500.0,0.00024931,7]
[340499132,1729354246789,-500.0,0.00024931,7]
[340499133,1729354246798,-500.0,0.00024931,7]
[340499135,1729354246807,-500.0,0.00024931,7]
[340499137,1729354246816,-500.0,0.00024931,2]
[340499139,1729354246825,-500.0,0.00024931,2]
[340499141,1729354246834,-500.0,0.00024931,2]
[340499143,1729354246843,-500.0,0.00024931,2]
[340499144,1729354246852,-500.0,0.00024931,2]
[340499146,1729354246862,-500.0,0.00024931,2]
[340499148,1729354246871,-500.0,0.00024931,2]
[340499150,1729354246880,-500.0,0.00024931,2]
[340499152,1729354246889,-500.0,0.00024931,2]
[340499154,1729354246898,-500.0,0.00024931,2]
[340499156,1729354246907,-500.0,0.00024931,2]
[340499157,1729354246917,-500.0,0.00024931,2]
[340499158,1729354246926,-500.0,0.00024931,2]
[340499159,1729354246937,-500.0,0.00024931,2]
[340499160,1729354246946,-500.0,0.00024931,2]
[340499161,1729354246955,-500.0,0.00024931,2]
[340499162,1729354246964,-699.15,0.00024931,2]
[340499164,1729354246973,-699.15,0.00024931,2]
[340499166,1729354246982,-699.15,0.00024931,2]
[340499168,1729354246992,-699.15,0.00024931,2]
[340499170,1729354247002,-699.15,0.00024931,2]
[340499172,1729354247011,-699.15,0.00024931,2]
[340499174,1729354247021,-699.15,0.00024931,2]
[340499176,1729354247030,-699.15,0.00024931,2]
[340499178,1729354247040,-500.0,0.00024931,2]
[340499180,1729354247049,-500.0,0.00024931,2]
[340499181,1729354247058,-500.0,0.00024931,2]
[340499182,1729354247067,-500.0,0.00024931,2]
[340499183,1729354247077,-500.0,0.00024931,2]
[340499184,1729354247086,-500.0,0.00024931,2]
[340499185,1729354247095,-509.12660941,0.00024931,2]
[340499186,1729354247104,-500.0,0.00024931,2]
[340499187,1729354247113,-544.53531454,0.00024931,2]
[340499188,1729354247123,-151.0,0.00024931,7]
[340499189,1729354247132,-500.0,0.00024931,2]
[340499190,1729354247141,-500.0,0.00024931,2]
[340499191,1729354247150,-160.84608176,0.00024931,2]
[340499192,1729354247159,-500.0,0.00024931,2]
[340499193,1729354247168,-567.17240288,0.00024931,2]
[340499194,1729354247177,-151.0,0.00024931,7]
[340499195,1729354247186,-552.33345679,0.00024931,2]
[340499196,1729354247196,-500.0,0.00024931,2]
[340499197,1729354247205,-513.23573081,0.00024931,2]
[340499198,1729354247215,-500.0,0.00024931,2]
[340499199,1729354247224,-513.68642038,0.00024931,2]
[340499200,1729354247234,-506.49541648,0.00024931,2]
[340499201,1729354247243,-151.0,0.00024931,7]
[340499202,1729354247252,-500.0,0.00024931,2]
[340499203,1729354247261,-500.0,0.00024931,2]
[340499204,1729354247271,-500.0,0.00024931,2]
[340499205,1729354247280,-500.0,0.00024931,2]
[340499206,1729354247289,-500.0,0.00024931,2]
[340499207,1729354247299,-500.0,0.00024931,2]
[340499208,1729354247308,-500.0,0.00024931,2]
[340499209,1729354247317,-500.0,0.00024931,2]
[340499210,1729354247327,-500.0,0.00024931,2]
[340499211,1729354247336,-500.0,0.00024931,2]
[340499212,1729354247345,-500.0,0.00024931,2]
[340499213,1729354247354,-500.0,0.00024931,2]
[340499214,1729354247364,-500.0,0.00024931,2]
[340499215,1729354247373,-500.0,0.00024931,2]
[340499216,1729354247382,-500.0,0.00024931,2]
[340499217,1729354247392,-216.7880871,0.00024931,2]
[340499218,1729354247402,-500.0,0.00024931,2]
[340499219,1729354247411,-500.0,0.00024931,2]
[340499220,1729354247421,-500.0,0.00024931,2]
[340499221,1729354247431,-500.0,0.00024931,2]
[340499222,1729354247441,-500.0,0.00024931,2]
[340499223,1729354247450,-500.0,0.00024931,2]
[340499224,1729354247460,-500.0,0.00024931,2]
[340499225,1729354247470,-500.0,0.00024931,2]
[340499226,1729354247481,-546.63066563,0.00024931,2]
[340499227,1729354247490,-500.0,0.00024931,2]
[340499228,1729354247500,-500.0,0.00024931,2]
[340499229,1729354247510,-500.0,0.00024931,2]
[340499230,1729354247520,-500.0,0.00024931,2]
[340499231,1729354247530,-500.0,0.00024931,2]
[340499232,1729354247540,-500.0,0.00024931,2]
[340499233,1729354247551,-268.64977326,0.00024931,2]
[340499234,1729354247560,-500.0,0.00024931,2]
[340499235,1729354247569,-500.0,0.00024931,2]
[340499236,1729354247579,-500.0,0.00024931,2]
[340499237,1729354247588,-500.0,0.00024931,2]
[340499238,1729354247599,-454.88839338,0.00024931,2]
[340499239,1729354247609,-500.0,0.00024931,2]
[340499240,1729354247618,-500.0,0.00024931,2]
[340499241,1729354247627,-500.0,0.00024931,2]
[340499242,1729354247636,-500.0,0.00024931,2]
[340499243,1729354247645,-500.0,0.00024931,2]
[340499244,1729354247654,-500.0,0.00024931,2]
[340499245,1729354247663,-501.42035115,0.00024931,2]
[340499246,1729354247672,-472.27690065,0.00024931,2]
[340499247,1729354247682,-500.0,0.00024931,2]
[340499248,1729354247692,-500.0,0.00024931,2]
[340499249,1729354247702,-500.0,0.00024931,2]
[340499250,1729354247711,-500.0,0.00024931,2]
[340499251,1729354247720,-501.92908428,0.00024931,2]
[340499252,1729354247729,-500.0,0.00024931,2]
[340499253,1729354247739,-200.0,0.00024931,2]
[340499254,1729354247748,-461.81577032,0.00024931,2]
[340499255,1729354247757,-500.0,0.00024931,2]
[340499256,1729354247765,-604.30259784,0.00024931,2]
[340499257,1729354247774,-474.11973661,0.00024931,2]
[340499258,1729354247784,-500.0,0.00024931,2]
[340499259,1729354247793,-500.0,0.00024931,2]
[340499260,1729354247802,-421.82969779,0.00024931,2]
[340499261,1729354247811,-500.0,0.00024931,2]
[340499262,1729354247820,-500.0,0.00024931,2]
[340499263,1729354247829,-500.0,0.00024931,2]
[340499264,1729354247839,-500.0,0.00024931,2]
[340499265,1729354247848,-500.0,0.00024931,2]
[340499266,1729354247858,-335.7249603,0.00024931,2]
[340499267,1729354247867,-500.0,0.00024931,2]
[340499268,1729354247876,-500.0,0.00024931,2]
[340499269,1729354247885,-500.0,0.00024931,2]
[340499270,1729354247895,-500.0,0.00024931,2]
[340499271,1729354247904,-500.0,0.00024931,2]
[340499272,1729354247914,-500.0,0.00024931,2]
[340499273,1729354247923,-578.19940149,0.00024931,2]
[340499274,1729354247932,-500.0,0.00024931,2]
[340499275,1729354247941,-500.0,0.00024931,2]
[340499276,1729354247951,-500.0,0.00024931,2]
[340499277,1729354247960,-500.0,0.00024931,2]
[340499278,1729354247970,-500.0,0.00024931,2]
[340499279,1729354247979,-500.0,0.00024931,2]
[340499280,1729354247988,-500.0,0.00024931,2]
[340499281,1729354247997,-500.0,0.00024931,2]
[340499282,1729354248007,-500.0,0.00024931,2]
[340499283,1729354248016,-500.0,0.00024931,2]
[340499284,1729354248025,-500.0,0.00024931,2]
[340499285,1729354248035,-500.0,0.00024931,2]
[340499286,1729354248044,-500.0,0.00024931,2]
[340499287,1729354248054,-500.0,0.00024931,2]
[340499288,1729354248063,-500.0,0.00024931,2]
[340499289,1729354248073,-272.9343467,0.00024931,2]
[340499290,1729354248082,-500.0,0.00024931,2]
[340499291,1729354248092,-500.0,0.00024931,2]
[340499292,1729354248101,-500.0,0.00024931,2]
[340499293,1729354248111,-500.0,0.00024931,2]
[340499294,1729354248120,-500.0,0.00024931,2]
[340499295,1729354248129,-500.0,0.00024931,2]
[340499296,1729354248138,-500.0,0.00024931,2]
[340499297,1729354248147,-500.0,0.00024931,2]
[340499298,1729354248157,-500.0,0.00024931,2]
[340499299,1729354248166,-500.0,0.00024931,2]
[340499300,1729354248175,-500.0,0.00024931,2]
[340499301,1729354248185,-500.0,0.00024931,2]
[340499302,1729354248194,-372.76937594,0.00024931,2]
[340499303,1729354248203,-528.86,0.00024931,2]
[340499304,1729354248213,-528.86,0.00024931,2]
[340499305,1729354248223,-528.86,0.00024931,2]